bitfinex/quotes_BTCUSD_20240101
["timestamp","ask_amount","ask_price","bid_price","bid_amount"]
[1704114577451,0.00359902,42719.0,42718.0,3.80998911]
[1704114577676,0.00359902,42719.0,42718.0,3.89386409]
[1704114577875,0.00359902,42719.0,42718.0,4.02880409]
[1704114578081,0.00359902,42719.0,42718.0,3.89386409]
[1704114578562,0.00359902,42719.0,42718.0,4.1559516]
[1704114579010,0.00359902,42719.0,42718.0,4.2914916]
[1704114580421,0.00359902,42719.0,42718.0,4.15578991]
[1704114580610,0.00359902,42719.0,42718.0,4.29102991]
[1704114580843,0.00359902,42719.0,42718.0,4.29530994]
[1704114581052,0.00359902,42719.0,42718.0,3.94950914]
[1704114581720,0.00359902,42719.0,42718.0,3.94546911]
[1704114581926,0.00359902,42719.0,42718.0,4.09428478]
[1704114582157,0.00359902,42719.0,42718.0,3.9707487]
[1704114582601,0.00359902,42719.0,42718.0,4.03180409]
[1704114582820,0.00359902,42719.0,42718.0,3.82556964]
[1704114583684,0.00359902,42719.0,42718.0,4.29375564]
[1704114586332,0.00359902,42719.0,42718.0,4.20988066]
[1704114586754,0.00359902,42719.0,42718.0,4.62171397]
[1704114587450,0.00359902,42719.0,42718.0,4.60471397]
[1704114587882,0.00359902,42719.0,42718.0,4.62371397]
[1704114588087,0.00259902,42719.0,42718.0,4.60771397]
[1704114588502,0.00259902,42719.0,42718.0,4.62671397]
[1704114589363,0.00259902,42719.0,42718.0,4.51488066]
[1704114590103,0.00259902,42719.0,42718.0,4.6546723]
[1704114591411,0.00259902,42719.0,42718.0,5.1228583]
[1704114591629,0.00259902,42719.0,42718.0,5.1038583]
[1704114591842,0.00259902,42719.0,42718.0,5.1228583]
[1704114592448,0.00259902,42719.0,42718.0,5.1038583]
[1704114592654,0.00259902,42719.0,42718.0,5.1228583]
[1704114593478,0.00259902,42719.0,42718.0,5.1038583]
[1704114593766,0.00259902,42719.0,42718.0,3.7183003]
[1704114593908,0.00259902,42719.0,42718.0,5.1038583]
[1704114594312,0.00259902,42719.0,42718.0,5.1218583]
[1704114595177,0.00259902,42719.0,42718.0,4.98206666]
[1704114595387,0.00259902,42719.0,42718.0,5.08418666]
[1704114596203,0.2128,42728.0,42718.0,5.08418666]
[1704114596204,0.2128,42728.0,42727.0,0.35684]
[1704114596407,0.2128,42728.0,42727.0,1.30454511]
[1704114596630,0.0262,42728.0,42727.0,1.54814511]
[1704114596837,0.0262,42728.0,42727.0,1.65525311]
[1704114597016,0.0262,42728.0,42727.0,1.83015792]
[1704114597238,0.0262,42728.0,42727.0,1.44615893]
[1704114597451,0.0262,42728.0,42727.0,1.65523412]
[1704114597882,0.0262,42728.0,42727.0,1.78279203]
[1704114598088,0.0262,42728.0,42727.0,1.81279203]
[1704114598291,0.0262,42728.0,42727.0,1.72870302]
[1704114598495,0.0262,42728.0,42727.0,1.71570302]
[1704114598703,0.0262,42728.0,42727.0,1.77175736]
[1704114598920,0.0262,42728.0,42727.0,1.78575736]
[1704114600794,0.0262,42728.0,42727.0,3.54395736]
[1704114600992,0.0262,42728.0,42727.0,3.83125462]
[1704114601205,0.0262,42728.0,42727.0,3.83089658]
[1704114601410,0.0262,42728.0,42727.0,3.85895158]
[1704114601617,0.0262,42728.0,42727.0,3.99587158]
[1704114602025,0.0262,42728.0,42727.0,3.83088753]
[1704114602279,0.0262,42728.0,42727.0,3.85895158]
[1704114602695,0.0262,42728.0,42727.0,4.67829767]
[1704114603534,0.0262,42728.0,42727.0,4.65021599]
[1704114603734,0.0262,42728.0,42727.0,4.66129767]
[1704114603943,0.0262,42728.0,42727.0,4.64722758]
[1704114604149,0.0262,42728.0,42727.0,4.66622758]
[1704114604371,0.0262,42728.0,42727.0,4.52611766]
[1704114604578,0.0262,42728.0,42727.0,4.98221924]
[1704114604795,0.0262,42728.0,42727.0,5.15272954]
[1704114605019,0.0262,42728.0,42727.0,5.13672954]
[1704114605233,0.0262,42728.0,42727.0,4.98521924]
[1704114605652,0.0262,42728.0,42727.0,5.12917695]
[1704114605859,0.0262,42728.0,42727.0,4.98907537]
[1704114606312,0.0262,42728.0,42727.0,5.10113128]
[1704114606965,0.0262,42728.0,42727.0,5.12917695]
[1704114607171,0.0262,42728.0,42727.0,4.98907537]
[1704114607607,0.0262,42728.0,42727.0,4.84511766]
[1704114608332,0.0262,42728.0,42727.0,4.95714221]
[1704114608544,0.0262,42728.0,42727.0,5.11838043]
[1704114609860,0.0262,42728.0,42727.0,5.11837551]
[1704114610925,0.0262,42728.0,42727.0,4.70635588]
[1704114611130,0.0262,42728.0,42727.0,4.81837551]
[1704114612756,0.0262,42728.0,42727.0,4.79035771]
[1704114612958,0.0262,42728.0,42727.0,4.81837551]
[1704114613141,0.0262,42728.0,42727.0,4.79035705]
[1704114624186,0.0262,42728.0,42727.0,4.70635588]
[1704114626018,0.0262,42728.0,42727.0,4.54511766]
[1704114626282,0.0262,42728.0,42727.0,4.79615119]
[1704114629099,0.0262,42728.0,42727.0,3.85997519]
[1704114629569,0.0262,42728.0,42727.0,4.79615119]
[1704114630188,0.0262,42728.0,42727.0,3.85997519]
[1704114630404,0.0262,42728.0,42727.0,4.18904929]
[1704114630617,0.0262,42728.0,42727.0,4.65713729]
[1704114632031,0.0262,42728.0,42727.0,4.81979084]
[1704114632245,0.0262,42728.0,42727.0,4.70777121]
[1704114632680,0.0262,42735.0,42734.0,0.35684]
[1704114632826,0.0262,42735.0,42734.0,1.30446811]
[1704114633265,0.0262,42735.0,42734.0,1.73898811]
[1704114633756,0.0262,42735.0,42734.0,1.34100222]
[1704114633979,0.0262,42735.0,42734.0,1.80901322]
[1704114634231,0.0262,42735.0,42734.0,2.52748608]
[1704114634443,0.0262,42735.0,42734.0,2.46644841]
[1704114634672,0.0262,42735.0,42734.0,2.59249864]
[1704114634887,0.0262,42735.0,42734.0,2.76646762]
[1704114635355,0.0262,42735.0,42734.0,2.75246762]
[1704114635824,0.0262,42735.0,42734.0,2.59549864]
[1704114636022,0.0262,42735.0,42734.0,2.57804073]
[1704114636238,0.02201484,42742.0,42741.0,0.35684]
[1704114636452,0.02201484,42742.0,42741.0,1.05799111]
[1704114636670,0.02201484,42742.0,42741.0,1.15219111]
[1704114637099,0.01781513,42742.0,42741.0,1.30981131]
[1704114637334,0.01781513,42742.0,42741.0,1.32281131]
[1704114637607,0.01781513,42742.0,42741.0,1.33781131]
[1704114637841,0.01781513,42742.0,42741.0,1.32481131]
[1704114638068,0.01781513,42742.0,42741.0,1.43541131]
[1704114639012,0.01781513,42742.0,42741.0,1.42041131]
[1704114639277,0.01781513,42742.0,42741.0,1.43441131]
[1704114639509,0.01781513,42742.0,42741.0,1.40941131]
[1704114639742,0.01781513,42742.0,42741.0,1.42241131]
[1704114640377,0.01781513,42742.0,42741.0,1.43741131]
[1704114642945,0.01781513,42742.0,42741.0,1.42441131]
[1704114643187,0.01781513,42742.0,42741.0,1.40941131]
[1704114643364,0.01781513,42742.0,42741.0,1.42241131]
[1704114643539,0.01781513,42742.0,42741.0,1.44141131]
[1704114643741,0.01781513,42742.0,42741.0,1.40941131]
[1704114644146,0.01781513,42742.0,42741.0,1.44741131]
[1704114648664,0.01781513,42742.0,42741.0,1.53619111]
[1704114648898,0.01781513,42742.0,42741.0,1.71320889]
[1704114650880,0.01781513,42742.0,42741.0,1.70979956]
[1704114651727,0.01781513,42742.0,42741.0,3.46799956]
[1704114652380,0.01781513,42742.0,42741.0,3.29439111]
[1704114652593,0.01781513,42742.0,42741.0,3.44361364]
[1704114656208,0.01781513,42742.0,42741.0,3.48411364]
[1704114657507,0.01781513,42742.0,42741.0,3.62607364]
[1704114657751,0.01781513,42742.0,42741.0,3.66885364]
[1704114658163,0.01781513,42742.0,42741.0,3.52689364]
[1704114660322,0.01781513,42742.0,42741.0,3.66903364]
[1704114660797,0.01781513,42742.0,42741.0,3.52689364]
[1704114661000,0.01781513,42742.0,42741.0,3.66951364]
[1704114661199,0.01781513,42742.0,42741.0,3.52689364]
[1704114662510,0.01781513,42742.0,42741.0,3.07647364]
[1704114662734,0.01781513,42742.0,42741.0,3.17757364]
[1704114663565,0.01781513,42742.0,42741.0,1.31827364]
[1704114663766,0.01781513,42742.0,42741.0,1.34447364]
[1704114664834,0.01781513,42742.0,42741.0,1.46459364]
[1704114666673,0.01781513,42742.0,42741.0,0.99665964]
[1704114667136,0.01781513,42742.0,42741.0,1.46459364]
[1704114670546,0.01781513,42742.0,42741.0,0.99665964]
[1704114670751,0.01781513,42742.0,42741.0,1.46459364]
[1704114670951,0.01781513,42742.0,42741.0,1.43603364]
[1704114671338,0.01781513,42742.0,42741.0,1.34447364]
[1704114671987,0.01781513,42742.0,42741.0,1.44023364]
[1704114672204,0.01781513,42742.0,42741.0,1.34447364]
[1704114672436,0.01781513,42742.0,42741.0,1.46819364]
[1704114673951,0.01781513,42742.0,42741.0,1.23945364]
[1704114674171,0.01781513,42742.0,42741.0,1.43945364]
[1704114674379,0.01781513,42742.0,42741.0,0.97151964]
[1704114674589,0.01781513,42742.0,42741.0,1.43945364]
[1704114677372,0.01781513,42742.0,42741.0,1.13945364]
[1704114677819,0.01781513,42742.0,42741.0,1.43945364]
[1704114678270,0.01781513,42742.0,42741.0,1.31207364]
[1704114679303,0.01781513,42742.0,42741.0,1.44305364]
[1704114680072,0.01781513,42742.0,42741.0,1.49906131]
[1704114680753,0.01781513,42742.0,42741.0,1.44305364]
[1704114681656,0.01781513,42742.0,42741.0,1.14305364]
[1704114681872,0.01781513,42742.0,42741.0,1.44305364]
[1704114682299,0.01781513,42742.0,42741.0,1.14305364]
[1704114682529,0.01781513,42742.0,42741.0,1.44305364]
[1704114683004,0.01781513,42742.0,42741.0,1.14305364]
[1704114683190,0.01781513,42742.0,42741.0,1.44305364]
[1704114683676,0.01781513,42742.0,42741.0,1.14305364]
[1704114683904,0.01781513,42742.0,42741.0,1.44305364]
[1704114684355,0.01781513,42742.0,42741.0,1.34573364]
[1704114684768,0.01781513,42742.0,42741.0,1.04573364]
[1704114684967,0.01781513,42742.0,42741.0,1.43693364]
[1704114685536,0.01781513,42742.0,42741.0,1.13693364]
[1704114685747,0.01781513,42742.0,42741.0,1.43693364]
[1704114685995,0.01781513,42742.0,42741.0,1.13693364]
[1704114686217,0.01781513,42742.0,42741.0,0.36402]
[1704114686420,0.01781513,42742.0,42741.0,0.37402]
[1704114686629,0.01781513,42742.0,42741.0,0.36402]
[1704114686835,0.01781513,42742.0,42741.0,0.37402]
[1704114686997,0.01781513,42742.0,42741.0,0.35502]
[1704114687209,0.01781513,42742.0,42741.0,0.36902]
[1704114687413,0.01781513,42742.0,42741.0,0.34282]
[1704114687886,0.01781513,42742.0,42741.0,0.69393711]
[1704114688285,0.01781513,42742.0,42741.0,0.79507711]
[1704114688489,0.01781513,42742.0,42741.0,1.24901111]
[1704114688693,0.01781513,42742.0,42741.0,1.23901111]
[1704114688836,0.01781513,42742.0,42741.0,1.25601111]
[1704114689069,0.01781513,42742.0,42741.0,1.24601111]
[1704114689262,0.01781513,42742.0,42741.0,1.23901111]
[1704114689491,0.01781513,42742.0,42741.0,1.25501111]
[1704114689727,0.01781513,42742.0,42741.0,1.26801111]
[1704114694526,0.01781513,42742.0,42741.0,1.49321111]
[1704114697711,0.01781513,42742.0,42741.0,1.26801111]
[1704114697926,0.01781513,42742.0,42741.0,1.32401878]
[1704114698133,0.01781513,42742.0,42741.0,1.55901072]
[1704114698375,0.01781513,42742.0,42741.0,1.50291111]
[1704114698601,0.01781513,42742.0,42741.0,1.55900945]
[1704114700664,0.01781513,42742.0,42741.0,1.50291111]
[1704114700886,0.01781513,42742.0,42741.0,1.55900798]
[1704114703786,0.01781513,42742.0,42741.0,1.09107398]
[1704114704000,0.01781513,42742.0,42741.0,1.55900798]
[1704114708817,0.01781513,42742.0,42741.0,1.50291111]
[1704114709415,0.01781513,42742.0,42741.0,1.41177111]
[1704114709829,0.01781513,42742.0,42741.0,1.07687111]
[1704114710201,0.01781513,42742.0,42741.0,1.05053111]
[1704114712280,0.01781513,42742.0,42741.0,1.15053111]
[1704114712525,0.01781513,42742.0,42741.0,1.05053111]
[1704114717592,0.01781513,42742.0,42741.0,0.14938]
[1704114721189,0.01781513,42742.0,42741.0,0.47124]
[1704114721409,0.01781513,42742.0,42741.0,0.939174]
[1704114722128,0.01781513,42742.0,42741.0,1.160474]
[1704114723333,0.01781513,42742.0,42741.0,1.067774]
[1704114723567,0.01781513,42742.0,42741.0,1.158554]
[1704114723978,0.01781513,42742.0,42741.0,1.067774]
[1704114724605,0.01781513,42742.0,42741.0,1.160354]
[1704114725451,0.01781513,42742.0,42741.0,1.067774]
[1704114725827,0.01781513,42742.0,42741.0,1.157894]
[1704114726250,0.01781513,42742.0,42741.0,1.067774]
[1704114726728,0.01781513,42742.0,42741.0,1.157714]
[1704114726970,0.01781513,42742.0,42741.0,1.067774]
[1704114727194,0.01781513,42742.0,42741.0,1.49153111]
[1704114728088,0.01781513,42742.0,42741.0,1.40099111]
[1704114729184,0.01781513,42742.0,42741.0,1.49339111]
[1704114738744,0.01781513,42742.0,42741.0,1.40099111]
[1704114739049,0.01781513,42742.0,42741.0,1.50251111]
[1704114745495,0.01781513,42742.0,42741.0,1.55860798]
[1704114745705,0.01781513,42742.0,42741.0,1.50251111]
[1704114746106,0.01781513,42742.0,42741.0,1.55860798]
[1704114747136,0.01781513,42742.0,42741.0,1.50251111]
[1704114747790,0.01781513,42742.0,42741.0,1.40099111]
[1704114750856,0.01781513,42742.0,42741.0,1.49477111]
[1704114751623,0.01781513,42742.0,42741.0,0.93305711]
[1704114752101,0.01781513,42742.0,42741.0,1.49135111]
[1704114752282,0.01781513,42742.0,42741.0,1.40099111]
[1704114753346,0.01781513,42742.0,42741.0,1.49987111]
[1704114753751,0.01781513,42742.0,42741.0,1.03193711]
[1704114753955,0.01781513,42742.0,42741.0,1.49987111]
[1704114754865,0.01781513,42742.0,42741.0,1.40099111]
[1704114755209,0.01781513,42742.0,42741.0,0.93305711]
[1704114755410,0.01781513,42742.0,42741.0,1.40099111]
[1704114756002,0.01781513,42742.0,42741.0,1.17969111]
[1704114756217,0.01781513,42742.0,42741.0,1.15791111]
[1704114757900,0.01781513,42742.0,42741.0,0.68997711]
[1704114758103,0.01781513,42742.0,42741.0,1.15791111]
[1704114759508,0.01781513,42742.0,42741.0,0.85791111]
[1704114760555,0.01781513,42742.0,42741.0,0.15676]
[1704114760763,0.01781513,42742.0,42741.0,0.08584]
[1704114760968,0.01781513,42742.0,42741.0,0.3453]
[1704114768832,0.01781513,42742.0,42741.0,0.67851711]
[1704114769048,0.01781513,42742.0,42741.0,1.61383256]
[1704114769686,0.01781513,42742.0,42741.0,1.66992943]
[1704114770118,0.01781513,42742.0,42741.0,1.69784406]
[1704114770533,0.01781513,42742.0,42741.0,1.61383256]
[1704114770745,0.01781513,42742.0,42741.0,1.66993264]
[1704114772549,0.01781513,42742.0,42741.0,1.61383256]
[1704114774741,0.01781513,42742.0,42741.0,1.40039111]
[1704114774937,0.01781513,42742.0,42741.0,1.30039111]
[1704114775685,0.01781513,42742.0,42741.0,1.40039111]
[1704114775897,0.01781513,42742.0,42741.0,1.30039111]
[1704114776632,0.01781513,42742.0,42741.0,0.728674]
[1704114776841,0.01781513,42742.0,42741.0,0.698614]
[1704114777510,0.01781513,42742.0,42741.0,0.598614]
[1704114777924,0.01781513,42742.0,42741.0,0.698614]
[1704114778145,0.01781513,42742.0,42741.0,0.598614]
[1704114778353,0.01781513,42742.0,42741.0,0.543774]
[1704114778562,0.01781513,42742.0,42741.0,0.589494]
[1704114779231,0.01781513,42742.0,42741.0,0.543774]
[1704114779638,0.01781513,42742.0,42741.0,0.593214]
[1704114779848,0.01781513,42742.0,42741.0,0.693214]
[1704114780270,0.01781513,42742.0,42741.0,0.593214]
[1704114780504,0.01781513,42742.0,42741.0,0.693214]
[1704114780926,0.01781513,42742.0,42741.0,0.12528]
[1704114781137,0.01781513,42742.0,42741.0,0.07584]
[1704114781286,0.01781513,42742.0,42741.0,0.12162]
[1704114781929,0.01781513,42742.0,42741.0,0.07584]
[1704114782532,0.01781513,42742.0,42741.0,0.25474]
[1704114782786,0.01781513,42742.0,42741.0,0.28332487]
[1704114783771,0.01781513,42742.0,42741.0,1.08447598]
[1704114784024,0.01781513,42742.0,42741.0,1.18447598]
[1704114784226,0.01781513,42742.0,42741.0,1.49707598]
[1704114784427,0.01781513,42742.0,42741.0,1.40497598]
[1704114784651,0.01781513,42742.0,42741.0,1.49905598]
[1704114786807,0.01781513,42742.0,42741.0,1.37639111]
[1704114787660,0.01781513,42742.0,42741.0,1.27639111]
[1704114788090,0.01781513,42742.0,42741.0,1.37639111]
[1704114789811,0.01781513,42742.0,42741.0,1.27639111]
[1704114790219,0.01781513,42742.0,42741.0,1.37639111]
[1704114791395,0.01781513,42742.0,42741.0,1.27639111]
[1704114791653,0.01781513,42742.0,42741.0,0.90845711]
[1704114791863,0.01781513,42742.0,42741.0,1.37639111]
[1704114792061,0.01781513,42742.0,42741.0,1.46009042]
[1704114808259,0.01781513,42742.0,42741.0,0.99215642]
[1704114808471,0.01781513,42742.0,42741.0,1.46009042]
[1704114820495,0.01781513,42742.0,42741.0,1.69389392]
[1704114820701,0.01781513,42742.0,42741.0,1.95623722]
[1704114821114,0.01781513,42742.0,42741.0,1.9842921]
[1704114821342,0.01781513,42742.0,42741.0,1.87208196]
[1704114821553,0.01781513,42742.0,42741.0,1.95622104]
[1704114822116,0.01781513,42742.0,42741.0,1.63779042]
[1704114822911,0.01781513,42742.0,42741.0,1.69387918]
[1704114823139,0.01781513,42742.0,42741.0,1.69387962]
[1704114823865,0.01781513,42742.0,42741.0,1.63779042]
[1704114824304,0.01781513,42742.0,42741.0,2.42380698]
[1704114824716,0.01781513,42742.0,42741.0,2.44680698]
[1704114824925,0.01781513,42742.0,42741.0,2.55472698]
[1704114825352,0.01781513,42742.0,42741.0,2.58272698]
[1704114825546,0.01781513,42742.0,42741.0,2.56772698]
[1704114825772,0.01781513,42742.0,42741.0,2.58279804]
[1704114825892,0.01781513,42742.0,42741.0,2.60179804]
[1704114826117,0.01781513,42742.0,42741.0,2.13386404]
[1704114826642,0.01781513,42742.0,42741.0,2.60179804]
[1704114826845,0.01781513,42742.0,42741.0,2.46487804]
[1704114827062,0.01781513,42742.0,42741.0,2.48387804]
[1704114827439,0.01781513,42742.0,42741.0,2.3716679]
[1704114827868,0.01781513,42742.0,42741.0,2.62601804]
[1704114828495,0.01781513,42742.0,42741.0,2.48387804]
[1704114829318,0.01781513,42742.0,42741.0,2.62637804]
[1704114829738,0.01781513,42742.0,42741.0,2.48387804]
[1704114830453,0.01781513,42742.0,42741.0,2.3716679]
[1704114830917,0.01781513,42742.0,42741.0,2.5092479]
[1704114831373,0.01781513,42742.0,42741.0,2.59335432]
[1704114836726,0.01781513,42742.0,42741.0,2.59305432]
[1704114836926,0.01781513,42742.0,42741.0,2.5089479]
[1704114839444,0.01781513,42742.0,42741.0,2.59303607]
[1704114841340,0.01781513,42742.0,42741.0,2.5089479]
[1704114841983,0.01781513,42742.0,42741.0,2.59303464]
[1704114842480,0.01781513,42742.0,42741.0,2.5089479]
[1704114843186,0.01781513,42742.0,42741.0,1.5730799]
[1704114843406,0.01781513,42742.0,42741.0,2.15312007]
[1704114843614,0.01781513,42742.0,42741.0,2.0410139]
[1704114843991,0.01781513,42742.0,42741.0,2.15312099]
[1704114844616,0.01781513,42742.0,42741.0,2.62105499]
[1704114844829,0.01781513,42742.0,42741.0,2.62105419]
[1704114845046,0.01781513,42742.0,42741.0,2.5089479]
[1704114845255,0.01781513,42742.0,42741.0,2.62104961]
[1704114845484,0.01781513,42742.0,42741.0,2.64920666]
[1704114845697,0.01781513,42742.0,42741.0,2.5089479]
[1704114845905,0.01781513,42742.0,42741.0,2.3713679]
[1704114846119,0.01781513,42742.0,42741.0,2.64746666]
[1704114846332,0.01781513,42742.0,42741.0,2.51162666]
[1704114846765,0.01781513,42742.0,42741.0,2.04369266]
[1704114847331,0.01781513,42742.0,42741.0,2.18181266]
[1704114847578,0.01781513,42742.0,42741.0,2.48346834]
[1704114848191,0.01781513,42742.0,42741.0,2.61834834]
[1704114848643,0.01781513,42742.0,42741.0,2.64650666]
[1704114849067,0.01781513,42742.0,42741.0,2.5062479]
[1704114849445,0.01781513,42742.0,42741.0,2.3713679]
[1704114849649,0.01781513,42742.0,42741.0,2.65232666]
[1704114849966,0.01781513,42742.0,42741.0,2.51162666]
[1704114850360,0.01781513,42742.0,42741.0,2.48346719]
[1704114850566,0.01781513,42742.0,42741.0,2.3713679]
[1704114850749,0.01781513,42742.0,42741.0,2.5116479]
[1704114850947,0.01781513,42742.0,42741.0,2.65190666]
[1704114851147,0.01781513,42742.0,42741.0,2.5116479]
[1704114851356,0.01781513,42742.0,42741.0,2.51162666]
[1704114851525,0.01781513,42742.0,42741.0,2.5112279]
[1704114851723,0.01781513,42742.0,42741.0,2.62332956]
[1704114852112,0.01781513,42742.0,42741.0,2.5112279]
[1704114853828,0.01781513,42742.0,42741.0,2.65148666]
[1704114854205,0.01781513,42742.0,42741.0,2.3713679]
[1704114854356,0.01781513,42742.0,42741.0,2.51162666]
[1704114854559,0.01781513,42742.0,42741.0,2.65304666]
[1704114854747,0.01781513,42742.0,42741.0,2.51162666]
[1704114857712,0.01781513,42742.0,42741.0,2.48348575]
[1704114858831,0.01781513,42742.0,42741.0,2.62340575]
[1704114859432,0.01781513,42742.0,42741.0,2.65154666]
[1704114859834,0.01781513,42742.0,42741.0,2.51162666]
[1704114863565,0.01781513,42742.0,42741.0,1.57575866]
[1704114863772,0.01781513,42742.0,42741.0,2.65928666]
[1704114863983,0.01781513,42742.0,42741.0,2.5190279]
[1704114864409,0.01781513,42742.0,42741.0,2.3713679]
[1704114867268,0.01781513,42742.0,42741.0,1.9034339]
[1704114867478,0.01781513,42742.0,42741.0,2.3713679]
[1704114868751,0.01781513,42742.0,42741.0,2.51165133]
[1704114869523,0.01781513,42742.0,42741.0,2.19927015]
[1704114869723,0.01781513,42742.0,42741.0,1.68028366]
[1704114869932,0.01781513,42742.0,42741.0,0.77526898]
[1704114870142,0.01781513,42742.0,42741.0,0.69213711]
[1704114871832,0.01781513,42742.0,42741.0,1.16007111]
[1704114872023,0.01781513,42742.0,42741.0,1.29921111]
[1704114872591,0.01781513,42742.0,42741.0,1.34603132]
[1704114877044,0.01781513,42742.0,42741.0,1.40216319]
[1704114877255,0.01781513,42742.0,42741.0,1.34603132]
[1704114877466,0.01781513,42742.0,42741.0,1.40216319]
[1704114880239,0.01781513,42742.0,42741.0,1.34603132]
[1704114880446,0.01781513,42742.0,42741.0,1.40210914]
[1704114880654,0.01781513,42742.0,42741.0,1.40210687]
[1704114880855,0.01781513,42742.0,42741.0,1.38310687]
[1704114881455,0.01781513,42742.0,42741.0,2.13159254]
[1704114881775,0.01781513,42742.0,42741.0,2.13988163]
[1704114881995,0.01781513,42742.0,42741.0,2.15888163]
[1704114882141,0.01781513,42742.0,42741.0,2.13988163]
[1704114884118,0.01781513,42742.0,42741.0,2.15888163]
[1704114889176,0.01781513,42742.0,42741.0,2.18692281]
[1704114890281,0.01781513,42742.0,42741.0,2.18657381]
[1704114891693,0.01781513,42742.0,42741.0,2.04641904]
[1704114891918,0.01781513,42742.0,42741.0,2.15854745]
[1704114893190,0.01781513,42742.0,42741.0,2.04641904]
[1704114895981,0.01781513,42742.0,42741.0,2.15855352]
[1704114896265,0.01781513,42742.0,42741.0,2.04641904]
[1704114900815,0.01781513,42742.0,42741.0,1.11055104]
[1704114901042,0.01781513,42742.0,42741.0,1.57848504]
[1704114901252,0.4262,42745.0,42742.0,0.761429]
[1704114901479,0.4262,42745.0,42744.0,0.35624]
[1704114901480,0.42438672,42745.0,42744.0,0.35624]
[1704114901702,0.42438672,42745.0,42744.0,2.08071283]
[1704114901930,0.42438672,42745.0,42744.0,2.51181283]
[1704114903608,0.42438672,42745.0,42744.0,2.53081283]
[1704114904743,0.42438672,42745.0,42744.0,2.08191183]
[1704114904948,0.42438672,42745.0,42744.0,2.22505344]
[1704114905159,0.42438672,42745.0,42744.0,2.47135344]
[1704114905374,0.42438672,42745.0,42744.0,3.40715544]
[1704114906484,0.0262,42747.0,42746.0,0.60254]
[1704114906702,0.0262,42747.0,42746.0,2.32697083]
[1704114907120,0.0262,42747.0,42746.0,3.01633083]
[1704114908359,0.0525725,42762.0,42761.0,0.14624]
[1704114908799,0.0525725,42762.0,42761.0,0.19724]
[1704114909246,0.05186525,42762.0,42761.0,0.19724]
[1704114909455,0.00186525,42762.0,42761.0,0.19724]
[1704114910310,0.00186525,42762.0,42761.0,0.20424]
[1704114910702,0.00186525,42762.0,42761.0,0.20624]
[1704114911141,0.00186525,42762.0,42761.0,0.20424]
[1704114911352,0.00186525,42762.0,42761.0,0.21624]
[1704114911727,0.00186525,42762.0,42761.0,0.20424]
[1704114912378,0.00186525,42762.0,42761.0,0.19724]
[1704114912794,0.00186525,42762.0,42761.0,0.64045711]
[1704114913007,0.00186525,42762.0,42761.0,0.66349711]
[1704114913224,0.00186525,42762.0,42761.0,0.65349711]
[1704114913643,0.00186525,42762.0,42761.0,1.13221211]
[1704114913859,0.00186525,42762.0,42761.0,1.24177211]
[1704114914078,0.00186525,42762.0,42761.0,1.23077211]
[1704114914280,0.00186525,42762.0,42761.0,1.22977211]
[1704114914491,0.00186525,42762.0,42761.0,1.24377211]
[1704114915756,0.00186525,42762.0,42761.0,1.23277211]
[1704114915970,0.00186525,42762.0,42761.0,1.24377211]
[1704114917569,0.00186525,42762.0,42761.0,1.14621211]
[1704114921360,0.00186525,42762.0,42761.0,1.24221211]
[1704114923079,0.00186525,42762.0,42761.0,1.14621211]
[1704114923280,0.00186525,42762.0,42761.0,1.23945211]
[1704114923698,0.00186525,42762.0,42761.0,1.14621211]
[1704114923900,0.00186525,42762.0,42761.0,1.23909211]
[1704114924947,0.00186525,42762.0,42761.0,1.73980711]
[1704114925164,0.00186525,42762.0,42761.0,1.9444902]
[1704114925852,0.00186525,42762.0,42761.0,1.9194902]
[1704114926053,0.00186525,42762.0,42761.0,1.9364902]
[1704114926260,0.00186525,42762.0,42761.0,1.9524902]
[1704114926687,0.00186525,42762.0,42761.0,2.0413492]
[1704114927769,0.00186525,42762.0,42761.0,2.0243492]
[1704114928197,0.00186525,42762.0,42761.0,2.0423492]
[1704114928936,0.00186525,42762.0,42761.0,1.3322752]
[1704114929573,0.00186525,42762.0,42761.0,1.3584752]
[1704114932666,0.00186525,42762.0,42761.0,1.4553752]
[1704114933081,0.00186525,42762.0,42761.0,1.3624952]
[1704114933777,0.00186525,42762.0,42761.0,1.4734952]
[1704114938282,0.00186525,42762.0,42761.0,1.4634952]
[1704114938488,0.00186525,42762.0,42761.0,1.4734952]
[1704114938723,0.00186525,42762.0,42761.0,1.4634952]
[1704114938933,0.00186525,42762.0,42761.0,1.4734952]
[1704114940187,0.00186525,42762.0,42761.0,1.0057802]
[1704114940609,0.00186525,42762.0,42761.0,1.4734952]
[1704114941225,0.00186525,42762.0,42761.0,1.0057802]
[1704114941655,0.00186525,42762.0,42761.0,1.4734952]
[1704114944433,0.00186525,42762.0,42761.0,1.4394952]
[1704114944880,0.00186525,42762.0,42761.0,1.0067802]
[1704114945213,0.00186525,42762.0,42761.0,0.9717802]
[1704114945430,0.00186525,42762.0,42761.0,0.9907802]
[1704114945632,0.00186525,42762.0,42761.0,1.4774952]
[1704114952948,0.00186525,42762.0,42761.0,1.3664952]
[1704114953744,0.00186525,42762.0,42761.0,1.4637552]
[1704114957307,0.00186525,42762.0,42761.0,1.3664952]
[1704114958054,0.00186525,42762.0,42761.0,1.4591352]
[1704114960460,0.00186525,42762.0,42761.0,0.96627211]
[1704114960669,0.00186525,42762.0,42761.0,0.08424]
[1704114961234,0.00186525,42762.0,42761.0,0.30452508]
[1704114961439,0.00186525,42762.0,42761.0,0.26652508]
[1704114961641,0.00186525,42762.0,42761.0,0.20486]
[1704114961839,0.00186525,42762.0,42761.0,0.22986]
[1704114962278,0.00186525,42762.0,42761.0,0.21086]
[1704114962499,0.00186525,42762.0,42761.0,0.21886]
[1704114962925,0.00186525,42762.0,42761.0,0.21086]
[1704114963059,0.00186525,42762.0,42761.0,0.16224]
[1704114963269,0.00186525,42762.0,42761.0,0.20946]
[1704114963490,0.00186525,42762.0,42761.0,0.19946]
[1704114963696,0.00186525,42762.0,42761.0,0.15324]
[1704114964183,0.19575035,42774.0,42771.0,1.0192868]
[1704114964383,0.00646907,42773.0,42771.0,1.0192868]
[1704114964557,0.467595,42772.0,42771.0,1.0192868]
[1704114966045,0.468595,42772.0,42771.0,1.0192868]
[1704114966692,0.70181211,42772.0,42771.0,1.0192868]
[1704114967020,0.70181211,42772.0,42771.0,1.0202868]
[1704114967629,0.70181211,42772.0,42771.0,1.0192868]
[1704114968055,0.70281211,42772.0,42771.0,1.0192868]
[1704114969107,1.18059762,42772.0,42771.0,1.0192868]
[1704114969279,1.01281211,42772.0,42771.0,1.0192868]
[1704114976773,1.15289786,42772.0,42771.0,1.0192868]
[1704114977018,1.01281211,42772.0,42771.0,1.0192868]
[1704114977253,1.12487375,42772.0,42771.0,1.0192868]
[1704114977492,1.15289687,42772.0,42771.0,1.0192868]
[1704114977705,1.12487356,42772.0,42771.0,1.0192868]
[1704114981480,1.01281211,42772.0,42771.0,1.0192868]
[1704114981963,1.21281211,42772.0,42771.0,1.0192868]
[1704114982175,1.36321211,42772.0,42771.0,1.0192868]